[Event "Titled Tuesday Blitz March 01 Early 2022"]
[White "Kett, Tim"]
[Black "Goltseva, Ekaterina"]
[WhiteFideId "1801210"]
[BlackFideId "24173770"]
[WhiteElo "2098"]
[BlackElo "2140"]
[Result "1-0"]
[Round "04"]
[TimeControl "180+1"]
[Date "2022.03.01"]
[WhiteClock "0:00:06"]
[BlackClock "0:00:04"]

1. e4 {[%clk 0:03:00]}  e5 {[%clk 0:03:00]} 2. f4 {[%clk 0:02:59]}  d5 {[%clk 0:02:59]} 3. exd5 {[%clk 0:02:59]}  exf4 {[%clk 0:02:59]} 4. Nf3 {[%clk 0:02:57]}  Bd6 {[%clk 0:02:47]} 5. d4 {[%clk 0:02:51]}  Nf6 {[%clk 0:02:43]} 6. Qe2+ {[%clk 0:02:49]}  Qe7 {[%clk 0:02:39]} 7. Qxe7+ {[%clk 0:02:43]}  Kxe7 {[%clk 0:02:40]} 8. c4 {[%clk 0:02:40]}  Re8 {[%clk 0:02:31]} 9. c5 {[%clk 0:02:19]}  Kd8+ {[%clk 0:02:30]} 10. Be2 {[%clk 0:02:14]}  Bf8 {[%clk 0:02:26]} 11. Nc3 {[%clk 0:02:08]}  Na6 {[%clk 0:01:59]} 12. Bxf4 {[%clk 0:02:06]}  Nb4 {[%clk 0:01:58]} 13. Kd2 {[%clk 0:02:01]}  Nbxd5 {[%clk 0:01:58]} 14. Bg5 {[%clk 0:01:52]}  Nxc3 {[%clk 0:01:51]} 15. Bxf6+ {[%clk 0:01:48]}  gxf6 {[%clk 0:01:51]} 16. bxc3 {[%clk 0:01:46]}  Bh6+ {[%clk 0:01:51]} 17. Kd1 {[%clk 0:01:39]}  Bd7 {[%clk 0:01:51]} 18. a4 {[%clk 0:01:30]}  Be6 {[%clk 0:01:50]} 19. Bd3 {[%clk 0:01:13]}  Bb3+ {[%clk 0:01:44]} 20. Bc2 {[%clk 0:01:13]}  Bxc2+ {[%clk 0:01:42]} 21. Kxc2 {[%clk 0:01:12]}  Re2+ {[%clk 0:01:43]} 22. Kd3 {[%clk 0:01:11]}  Rxg2 {[%clk 0:01:41]} 23. Rhg1 {[%clk 0:01:11]}  Rxg1 {[%clk 0:01:38]} 24. Rxg1 {[%clk 0:01:11]}  Kd7 {[%clk 0:01:38]} 25. Nh4 {[%clk 0:01:08]}  Re8 {[%clk 0:01:11]} 26. Nf5 {[%clk 0:01:07]}  Bf4 {[%clk 0:01:12]} 27. Kc4 {[%clk 0:00:56]}  c6 {[%clk 0:01:05]} 28. Rf1 {[%clk 0:00:40]}  Bxh2 {[%clk 0:01:03]} 29. Rh1 {[%clk 0:00:40]}  Bf4 {[%clk 0:00:54]} 30. Rxh7 {[%clk 0:00:38]}  Rf8 {[%clk 0:00:54]} 31. Kd3 {[%clk 0:00:25]}  Ke6 {[%clk 0:00:47]} 32. Ke4 {[%clk 0:00:24]}  Bc7 {[%clk 0:00:46]} 33. Ng7+ {[%clk 0:00:24]}  Kd7 {[%clk 0:00:45]} 34. Kf5 {[%clk 0:00:23]}  Ba5 {[%clk 0:00:38]} 35. Rh3 {[%clk 0:00:22]}  Bd8 {[%clk 0:00:28]} 36. Nh5 {[%clk 0:00:21]}  Rg8 {[%clk 0:00:21]} 37. Nxf6+ {[%clk 0:00:20]}  Bxf6 {[%clk 0:00:20]} 38. Kxf6 {[%clk 0:00:20]}  Rg1 {[%clk 0:00:20]} 39. Kxf7 {[%clk 0:00:19]}  Ra1 {[%clk 0:00:20]} 40. Rh7 {[%clk 0:00:16]}  Rxa4 {[%clk 0:00:15]} 41. Kf6+ {[%clk 0:00:16]}  Kc8 {[%clk 0:00:14]} 42. Ke6 {[%clk 0:00:14]}  a5 {[%clk 0:00:09]} 43. Kd6 {[%clk 0:00:14]}  Kb8 {[%clk 0:00:09]} 44. Rh8+ {[%clk 0:00:11]}  Ka7 {[%clk 0:00:09]} 45. Kc7 {[%clk 0:00:10]}  Ra3 {[%clk 0:00:09]} 46. Rb8 {[%clk 0:00:08]}  Rb3 {[%clk 0:00:09]} 47. c4 {[%clk 0:00:08]}  a4 {[%clk 0:00:09]} 48. d5 {[%clk 0:00:07]}  cxd5 {[%clk 0:00:06]} 49. cxd5 {[%clk 0:00:05]}  Rb5 {[%clk 0:00:04]} 50. c6 {[%clk 0:00:05]}  bxc6 {[%clk 0:00:04]} 51. Rxb5 {[%clk 0:00:03]}  cxb5 {[%clk 0:00:04]} 52. d6 {[%clk 0:00:04]}  a3 {[%clk 0:00:02]} 53. d7 {[%clk 0:00:04]}  a2 {[%clk 0:00:03]} 54. d8=Q {[%clk 0:00:05]}  a1=Q {[%clk 0:00:04]} 55. Qb8+ {[%clk 0:00:05]}  Ka6 {[%clk 0:00:04]} 56. Qb6# {[%clk 0:00:06]} 1-0


[Site "https://www.chess.com"]

[Event "Titled Tuesday Blitz March 01 Early 2022"]
[White "Kezin, Roman"]
[Black "Martin Duque, Jesus"]
[WhiteFideId "24124621"]
[BlackFideId "2208954"]
[WhiteElo "2509"]
[BlackElo "2243"]
[Result "1-0"]
[Round "04"]
[TimeControl "180+1"]
[Date "2022.03.01"]
[WhiteClock "0:02:32"]
[BlackClock "0:00:49"]

1. e4 {[%clk 0:03:00]}  c5 {[%clk 0:02:59]} 2. Be2 {[%clk 0:03:00]}  b6 {[%clk 0:02:58]} 3. f4 {[%clk 0:02:59]}  Bb7 {[%clk 0:02:59]} 4. d3 {[%clk 0:02:59]}  g6 {[%clk 0:02:59]} 5. Nf3 {[%clk 0:02:59]}  Bg7 {[%clk 0:02:59]} 6. O-O {[%clk 0:02:59]}  d6 {[%clk 0:02:58]} 7. c3 {[%clk 0:03:00]}  Nc6 {[%clk 0:02:58]} 8. Be3 {[%clk 0:03:00]}  e6 {[%clk 0:02:57]} 9. Nbd2 {[%clk 0:03:00]}  Nge7 {[%clk 0:02:57]} 10. Kh1 {[%clk 0:02:56]}  Qd7 {[%clk 0:02:57]} 11. d4 {[%clk 0:02:56]}  f5 {[%clk 0:02:57]} 12. dxc5 {[%clk 0:02:48]}  bxc5 {[%clk 0:02:55]} 13. Nc4 {[%clk 0:02:46]}  Rd8 {[%clk 0:02:51]} 14. e5 {[%clk 0:02:46]}  Nd5 {[%clk 0:02:50]} 15. Nxd6+ {[%clk 0:02:44]}  Kf8 {[%clk 0:02:50]} 16. Bxc5 {[%clk 0:02:43]}  Kg8 {[%clk 0:02:50]} 17. Qa4 {[%clk 0:02:38]}  Nxe5 {[%clk 0:02:42]} 18. Qxd7 {[%clk 0:02:38]}  Nxd7 {[%clk 0:02:42]} 19. Nxb7 {[%clk 0:02:38]}  Rb8 {[%clk 0:02:41]} 20. Ba6 {[%clk 0:02:35]}  Nc7 {[%clk 0:02:35]} 21. Bd6 {[%clk 0:02:35]}  Nxa6 {[%clk 0:02:31]} 22. Bxb8 {[%clk 0:02:36]}  Naxb8 {[%clk 0:02:31]} 23. Ng5 {[%clk 0:02:33]}  Nf8 {[%clk 0:02:30]} 24. Rfe1 {[%clk 0:02:31]}  e5 {[%clk 0:00:52]} 25. fxe5 {[%clk 0:02:32]}  Nc6 {[%clk 0:00:51]} 26. e6 {[%clk 0:02:32]}  Ne7 {[%clk 0:00:50]} 27. Nf7 {[%clk 0:02:32]}  Bxc3 {[%clk 0:00:49]} 28. bxc3 {[%clk 0:02:32]}  h5 {[%clk 0:00:49]} 29. Nxh8 {[%clk 0:02:32]} 1-0


[Site "https://www.chess.com"]

[Event "Titled Tuesday Blitz March 01 Early 2022"]
[White "Korchmar, Vasiliy"]
[Black "Devaev, Alexander"]
[WhiteFideId "24131750"]
[BlackFideId "4169395"]
[WhiteElo "2370"]
[BlackElo "2185"]
[Result "1-0"]
[Round "04"]
[TimeControl "180+1"]
[Date "2022.03.01"]
[WhiteClock "0:00:06"]
[BlackClock "0:00:03"]

1. e4 {[%clk 0:03:00]}  c6 {[%clk 0:02:55]} 2. d4 {[%clk 0:03:00]}  d5 {[%clk 0:02:56]} 3. e5 {[%clk 0:03:01]}  Bf5 {[%clk 0:02:55]} 4. c4 {[%clk 0:02:59]}  e6 {[%clk 0:02:55]} 5. Nc3 {[%clk 0:02:59]}  Nd7 {[%clk 0:02:55]} 6. Nge2 {[%clk 0:02:57]}  h6 {[%clk 0:02:51]} 7. Ng3 {[%clk 0:02:57]}  Bg6 {[%clk 0:02:50]} 8. h4 {[%clk 0:02:55]}  Ne7 {[%clk 0:02:49]} 9. h5 {[%clk 0:02:55]}  Bh7 {[%clk 0:02:50]} 10. cxd5 {[%clk 0:02:54]}  cxd5 {[%clk 0:02:44]} 11. Bd3 {[%clk 0:02:52]}  Bxd3 {[%clk 0:02:44]} 12. Qxd3 {[%clk 0:02:53]}  Qb6 {[%clk 0:02:37]} 13. f4 {[%clk 0:02:42]}  f5 {[%clk 0:01:08]} 14. exf6 {[%clk 0:02:27]}  Nxf6 {[%clk 0:00:58]} 15. O-O {[%clk 0:02:22]}  O-O-O {[%clk 0:00:59]} 16. Be3 {[%clk 0:02:22]}  Kb8 {[%clk 0:00:59]} 17. f5 {[%clk 0:02:18]}  Ka8 {[%clk 0:00:53]} 18. fxe6 {[%clk 0:02:08]}  Qxe6 {[%clk 0:00:52]} 19. Nb5 {[%clk 0:02:08]}  Qb6 {[%clk 0:00:36]} 20. Bf4 {[%clk 0:02:09]}  Rc8 {[%clk 0:00:34]} 21. Rac1 {[%clk 0:02:07]}  Nc6 {[%clk 0:00:34]} 22. Nf5 {[%clk 0:01:55]}  a6 {[%clk 0:00:28]} 23. Nbd6 {[%clk 0:01:51]}  Bxd6 {[%clk 0:00:26]} 24. Nxd6 {[%clk 0:01:52]}  Rcf8 {[%clk 0:00:22]} 25. Kh1 {[%clk 0:01:03]}  Qxd4 {[%clk 0:00:17]} 26. Qb3 {[%clk 0:00:47]}  Qb4 {[%clk 0:00:17]} 27. Qxb4 {[%clk 0:00:36]}  Nxb4 {[%clk 0:00:17]} 28. Be5 {[%clk 0:00:37]}  Nd3 {[%clk 0:00:16]} 29. Rc7 {[%clk 0:00:19]}  Nxe5 {[%clk 0:00:15]} 30. Nxb7 {[%clk 0:00:20]}  Nfg4 {[%clk 0:00:12]} 31. Rfc1 {[%clk 0:00:15]}  Rb8 {[%clk 0:00:09]} 32. Na5 {[%clk 0:00:07]}  Rxb2 {[%clk 0:00:09]} 33. Rxg7 {[%clk 0:00:08]}  Rf8 {[%clk 0:00:06]} 34. Kg1 {[%clk 0:00:07]}  Rxa2 {[%clk 0:00:04]} 35. Nc6 {[%clk 0:00:06]}  Rf7 {[%clk 0:00:04]} 36. Rg8+ {[%clk 0:00:04]}  Kb7 {[%clk 0:00:04]} 37. Nd8+ {[%clk 0:00:05]}  Kb6 {[%clk 0:00:04]} 38. Nxf7 {[%clk 0:00:05]}  Nxf7 {[%clk 0:00:04]} 39. Rxg4 {[%clk 0:00:06]}  Ne5 {[%clk 0:00:04]} 40. Rb4+ {[%clk 0:00:05]}  Ka5 {[%clk 0:00:03]} 41. Rd4 {[%clk 0:00:06]} 1-0


[Site "https://www.chess.com"]

[Event "Titled Tuesday Blitz March 01 Early 2022"]
[White "Kornyukov, Alexey"]
[Black "Martinez, Shawn"]
[WhiteFideId "4150457"]
[BlackFideId "2039770"]
[WhiteElo "2303"]
[BlackElo "2174"]
[Result "0-1"]
[Round "04"]
[TimeControl "180+1"]
[Date "2022.03.01"]
[WhiteClock "0:00:20"]
[BlackClock "0:00:15"]

1. e4 {[%clk 0:03:00]}  c5 {[%clk 0:02:44]} 2. Nf3 {[%clk 0:02:59]}  e6 {[%clk 0:02:44]} 3. c3 {[%clk 0:02:59]}  Nf6 {[%clk 0:02:43]} 4. e5 {[%clk 0:02:58]}  Nd5 {[%clk 0:02:43]} 5. d4 {[%clk 0:02:58]}  cxd4 {[%clk 0:02:44]} 6. cxd4 {[%clk 0:02:58]}  Bb4+ {[%clk 0:02:44]} 7. Bd2 {[%clk 0:02:57]}  Bxd2+ {[%clk 0:02:43]} 8. Nbxd2 {[%clk 0:02:55]}  d6 {[%clk 0:02:43]} 9. Bb5+ {[%clk 0:02:53]}  Bd7 {[%clk 0:02:41]} 10. Bxd7+ {[%clk 0:02:52]}  Qxd7 {[%clk 0:02:42]} 11. exd6 {[%clk 0:02:52]}  Qxd6 {[%clk 0:02:41]} 12. O-O {[%clk 0:02:52]}  Nc6 {[%clk 0:02:36]} 13. Ne4 {[%clk 0:02:49]}  Qd8 {[%clk 0:02:32]} 14. Nc5 {[%clk 0:02:48]}  O-O {[%clk 0:02:28]} 15. Nxb7 {[%clk 0:02:48]}  Qb6 {[%clk 0:02:28]} 16. Nc5 {[%clk 0:02:47]}  Qxb2 {[%clk 0:02:27]} 17. Qa4 {[%clk 0:02:47]}  Rac8 {[%clk 0:02:21]} 18. Rfb1 {[%clk 0:02:39]}  Qe2 {[%clk 0:01:54]} 19. Re1 {[%clk 0:02:35]}  Qb2 {[%clk 0:01:52]} 20. Reb1 {[%clk 0:02:33]}  Qc3 {[%clk 0:01:45]} 21. Rc1 {[%clk 0:02:31]}  Qa5 {[%clk 0:01:45]} 22. Qxa5 {[%clk 0:02:26]}  Nxa5 {[%clk 0:01:46]} 23. Nd7 {[%clk 0:02:25]}  Rfd8 {[%clk 0:01:44]} 24. Nc5 {[%clk 0:02:19]}  Nf4 {[%clk 0:01:42]} 25. Kf1 {[%clk 0:02:15]}  Nc6 {[%clk 0:01:39]} 26. g3 {[%clk 0:02:11]}  Nd5 {[%clk 0:01:37]} 27. Rc4 {[%clk 0:02:07]}  Nce7 {[%clk 0:01:33]} 28. Rac1 {[%clk 0:02:05]}  Nf5 {[%clk 0:01:33]} 29. g4 {[%clk 0:01:58]}  Nd6 {[%clk 0:01:32]} 30. R4c2 {[%clk 0:01:55]}  h6 {[%clk 0:01:31]} 31. Nd3 {[%clk 0:01:41]}  Rxc2 {[%clk 0:01:25]} 32. Rxc2 {[%clk 0:01:41]}  Rb8 {[%clk 0:01:24]} 33. Rc6 {[%clk 0:01:38]}  Nb5 {[%clk 0:01:14]} 34. Nde5 {[%clk 0:01:29]}  Nbc3 {[%clk 0:01:12]} 35. a3 {[%clk 0:01:25]}  Rb1+ {[%clk 0:00:57]} 36. Kg2 {[%clk 0:01:24]}  Nf4+ {[%clk 0:00:57]} 37. Kg3 {[%clk 0:01:24]}  Nce2+ {[%clk 0:00:57]} 38. Kh4 {[%clk 0:01:20]}  g5+ {[%clk 0:00:57]} 39. Nxg5 {[%clk 0:01:19]}  hxg5+ {[%clk 0:00:57]} 40. Kxg5 {[%clk 0:01:19]}  Rd1 {[%clk 0:00:47]} 41. Rc8+ {[%clk 0:01:11]}  Kg7 {[%clk 0:00:45]} 42. Rc7 {[%clk 0:01:11]}  Rxd4 {[%clk 0:00:40]} 43. Rxf7+ {[%clk 0:01:10]}  Kg8 {[%clk 0:00:40]} 44. Kf6 {[%clk 0:01:02]}  Nd5+ {[%clk 0:00:24]} 45. Kxe6 {[%clk 0:01:00]}  Nef4+ {[%clk 0:00:24]} 46. Kf5 {[%clk 0:00:56]}  Nh3 {[%clk 0:00:22]} 47. Rxa7 {[%clk 0:00:52]}  Rf4+ {[%clk 0:00:20]} 48. Kg6 {[%clk 0:00:48]}  Rxf2 {[%clk 0:00:20]} 49. Rg7+ {[%clk 0:00:40]}  Kf8 {[%clk 0:00:20]} 50. Rh7 {[%clk 0:00:35]}  Nhf4+ {[%clk 0:00:18]} 51. Kg5 {[%clk 0:00:32]}  Ne6+ {[%clk 0:00:17]} 52. Kh5 {[%clk 0:00:25]}  Rxh2+ {[%clk 0:00:17]} 53. Kg6 {[%clk 0:00:25]}  Ndf4+ {[%clk 0:00:16]} 54. Kf6 {[%clk 0:00:24]}  Rxh7 {[%clk 0:00:16]} 55. Ng6+ {[%clk 0:00:22]}  Ke8 {[%clk 0:00:16]} 56. Nxf4 {[%clk 0:00:20]}  Nxf4 {[%clk 0:00:17]} 57. g5 {[%clk 0:00:20]}  Ra7 {[%clk 0:00:15]} 58. g6 {[%clk 0:00:21]}  Nxg6 {[%clk 0:00:14]} 59. Kxg6 {[%clk 0:00:21]}  Rxa3 {[%clk 0:00:15]} 60. Kf5 {[%clk 0:00:21]}  Ra4 {[%clk 0:00:16]} 61. Ke5 {[%clk 0:00:21]}  Ke7 {[%clk 0:00:15]} 62. Kf5 {[%clk 0:00:21]}  Kd6 {[%clk 0:00:14]} 63. Kf6 {[%clk 0:00:20]}  Rf4+ {[%clk 0:00:13]} 64. Kg5 {[%clk 0:00:20]}  Rf1 {[%clk 0:00:14]} 65. Kg6 {[%clk 0:00:20]}  Ke6 {[%clk 0:00:14]} 66. Kg5 {[%clk 0:00:20]}  Ke5 {[%clk 0:00:14]} 67. Kg6 {[%clk 0:00:20]}  Rf5 {[%clk 0:00:14]} 68. Kg7 {[%clk 0:00:20]}  Rf6 {[%clk 0:00:14]} 69. Kg8 {[%clk 0:00:20]}  Kf5 {[%clk 0:00:14]} 70. Kg7 {[%clk 0:00:20]}  Kg5 {[%clk 0:00:14]} 71. Kg8 {[%clk 0:00:20]}  Kg6 {[%clk 0:00:14]} 72. Kh8 {[%clk 0:00:20]}  Rf8# {[%clk 0:00:15]} 0-1


[Site "https://www.chess.com"]

[Event "Titled Tuesday Blitz March 01 Early 2022"]
[White "Krishnan, Varun"]
[Black "Muradli, Mahammad"]
[WhiteFideId "5054508"]
[BlackFideId "13409301"]
[WhiteElo "2583"]
[BlackElo "2645"]
[Result "1/2-1/2"]
[Round "04"]
[TimeControl "180+1"]
[Date "2022.03.01"]
[WhiteClock "0:00:13"]
[BlackClock "0:00:06"]

1. e4 {[%clk 0:03:00]}  g6 {[%clk 0:02:59]} 2. d4 {[%clk 0:03:00]}  Bg7 {[%clk 0:03:00]} 3. Nc3 {[%clk 0:02:59]}  c6 {[%clk 0:03:01]} 4. h3 {[%clk 0:02:48]}  d5 {[%clk 0:02:53]} 5. Nf3 {[%clk 0:02:48]}  dxe4 {[%clk 0:02:53]} 6. Nxe4 {[%clk 0:02:49]}  Nf6 {[%clk 0:02:54]} 7. Bd3 {[%clk 0:02:48]}  O-O {[%clk 0:02:53]} 8. O-O {[%clk 0:02:47]}  Nbd7 {[%clk 0:02:41]} 9. c3 {[%clk 0:02:46]}  b6 {[%clk 0:02:39]} 10. Bf4 {[%clk 0:02:44]}  Bb7 {[%clk 0:02:38]} 11. Bh2 {[%clk 0:02:44]}  c5 {[%clk 0:02:38]} 12. Re1 {[%clk 0:02:38]}  cxd4 {[%clk 0:02:37]} 13. Nxd4 {[%clk 0:02:37]}  Nxe4 {[%clk 0:02:35]} 14. Bxe4 {[%clk 0:02:38]}  Bxe4 {[%clk 0:02:35]} 15. Rxe4 {[%clk 0:02:37]}  Nc5 {[%clk 0:02:36]} 16. Re2 {[%clk 0:02:30]}  Rc8 {[%clk 0:02:36]} 17. Nf3 {[%clk 0:02:19]}  e6 {[%clk 0:02:27]} 18. Bd6 {[%clk 0:02:05]}  Re8 {[%clk 0:02:20]} 19. Bxc5 {[%clk 0:02:05]}  bxc5 {[%clk 0:02:20]} 20. Rd2 {[%clk 0:02:03]}  Qb6 {[%clk 0:02:19]} 21. Qb3 {[%clk 0:01:50]}  Rb8 {[%clk 0:02:17]} 22. Rd7 {[%clk 0:01:45]}  Qc6 {[%clk 0:01:51]} 23. Qd1 {[%clk 0:01:45]}  Rxb2 {[%clk 0:01:51]} 24. Rxa7 {[%clk 0:01:43]}  Bxc3 {[%clk 0:01:41]} 25. Rc1 {[%clk 0:01:26]}  Bf6 {[%clk 0:01:38]} 26. Qa4 {[%clk 0:00:50]}  Rc8 {[%clk 0:01:19]} 27. Qf4 {[%clk 0:00:41]}  e5 {[%clk 0:00:41]} 28. Nxe5 {[%clk 0:00:40]}  Qd6 {[%clk 0:00:41]} 29. Qc4 {[%clk 0:00:36]}  Rc7 {[%clk 0:00:17]} 30. Nxf7 {[%clk 0:00:24]}  Qe7 {[%clk 0:00:17]} 31. Ng5+ {[%clk 0:00:22]}  Kh8 {[%clk 0:00:14]} 32. Ra8+ {[%clk 0:00:20]}  Kg7 {[%clk 0:00:14]} 33. Ne6+ {[%clk 0:00:19]}  Kh6 {[%clk 0:00:14]} 34. Qf4+ {[%clk 0:00:15]}  g5 {[%clk 0:00:14]} 35. Qxc7 {[%clk 0:00:11]}  Qxe6 {[%clk 0:00:15]} 36. Qxc5 {[%clk 0:00:10]}  Re2 {[%clk 0:00:08]} 37. Qf8+ {[%clk 0:00:09]}  Bg7 {[%clk 0:00:07]} 38. Qb4 {[%clk 0:00:07]}  Qf6 {[%clk 0:00:04]} 39. Rf1 {[%clk 0:00:05]}  Rb2 {[%clk 0:00:04]} 40. Qa4 {[%clk 0:00:04]}  Qe5 {[%clk 0:00:02]} 41. Ra6+ {[%clk 0:00:03]}  Bf6 {[%clk 0:00:02]} 42. Qg4 {[%clk 0:00:02]}  Kg7 {[%clk 0:00:02]} 43. Qf3 {[%clk 0:00:02]}  Qf4 {[%clk 0:00:02]} 44. Ra4 {[%clk 0:00:03]}  Qxa4 {[%clk 0:00:02]} 45. Qf5 {[%clk 0:00:03]}  Qd4 {[%clk 0:00:02]} 46. Qa5 {[%clk 0:00:03]}  Qe5 {[%clk 0:00:02]} 47. Qa7+ {[%clk 0:00:03]}  Kh6 {[%clk 0:00:03]} 48. a4 {[%clk 0:00:03]}  Ra2 {[%clk 0:00:03]} 49. a5 {[%clk 0:00:03]}  Qd4 {[%clk 0:00:03]} 50. Qb7 {[%clk 0:00:03]}  Rxa5 {[%clk 0:00:03]} 51. Qf3 {[%clk 0:00:03]}  Ra1 {[%clk 0:00:03]} 52. g3 {[%clk 0:00:01]}  Rxf1+ {[%clk 0:00:03]} 53. Kxf1 {[%clk 0:00:02]}  Qc4+ {[%clk 0:00:03]} 54. Kg2 {[%clk 0:00:03]}  Qd4 {[%clk 0:00:04]} 55. h4 {[%clk 0:00:03]}  gxh4 {[%clk 0:00:04]} 56. gxh4 {[%clk 0:00:03]}  Qxh4 {[%clk 0:00:05]} 57. Qe3+ {[%clk 0:00:04]}  Kg7 {[%clk 0:00:05]} 58. Qa7+ {[%clk 0:00:03]}  Kg6 {[%clk 0:00:05]} 59. Qe3 {[%clk 0:00:04]}  h6 {[%clk 0:00:03]} 60. Qg3+ {[%clk 0:00:04]}  Qg5 {[%clk 0:00:03]} 61. Kh3 {[%clk 0:00:03]}  Kf7 {[%clk 0:00:02]} 62. Qb3+ {[%clk 0:00:02]}  Kg7 {[%clk 0:00:02]} 63. Qg3 {[%clk 0:00:02]}  Kh7 {[%clk 0:00:02]} 64. Qg4 {[%clk 0:00:02]}  Qe5 {[%clk 0:00:01]} 65. f3 {[%clk 0:00:02]}  h5 {[%clk 0:00:01]} 66. Qe4+ {[%clk 0:00:03]}  Kh6 {[%clk 0:00:02]} 67. Qxe5 {[%clk 0:00:03]}  Bxe5 {[%clk 0:00:03]} 68. f4 {[%clk 0:00:04]}  Bxf4 {[%clk 0:00:04]} 69. Kg2 {[%clk 0:00:04]}  Kg5 {[%clk 0:00:05]} 70. Kh1 {[%clk 0:00:05]}  Kg4 {[%clk 0:00:06]} 71. Kg2 {[%clk 0:00:06]}  h4 {[%clk 0:00:06]} 72. Kh1 {[%clk 0:00:07]}  h3 {[%clk 0:00:07]} 73. Kg1 {[%clk 0:00:07]}  Bg3 {[%clk 0:00:08]} 74. Kh1 {[%clk 0:00:08]}  Kf3 {[%clk 0:00:09]} 75. Kg1 {[%clk 0:00:08]}  Kg4 {[%clk 0:00:08]} 76. Kh1 {[%clk 0:00:09]}  Bh4 {[%clk 0:00:09]} 77. Kg1 {[%clk 0:00:08]}  Bd8 {[%clk 0:00:10]} 78. Kh1 {[%clk 0:00:09]}  Bb6 {[%clk 0:00:11]} 79. Kh2 {[%clk 0:00:09]}  Bf2 {[%clk 0:00:10]} 80. Kh1 {[%clk 0:00:10]}  Kf3 {[%clk 0:00:06]} 81. Kh2 {[%clk 0:00:11]}  Bh4 {[%clk 0:00:05]} 82. Kh1 {[%clk 0:00:12]}  Bg5 {[%clk 0:00:06]} 83. Kh2 {[%clk 0:00:12]}  Kg4 {[%clk 0:00:03]} 84. Kh1 {[%clk 0:00:12]}  Kg3 {[%clk 0:00:04]} 85. Kg1 {[%clk 0:00:13]}  Be3+ {[%clk 0:00:05]} 86. Kh1 {[%clk 0:00:13]}  h2 {[%clk 0:00:06]} 1/2-1/2


[Site "https://www.chess.com"]

[Event "Titled Tuesday Blitz March 01 Early 2022"]
[White "Krylov, Ivan"]
[Black "Artemenko, Oleg"]
[WhiteFideId "24128066"]
[BlackFideId "14201798"]
[WhiteElo "2258"]
[BlackElo "2287"]
[Result "0-1"]
[Round "04"]
[TimeControl "180+1"]
[Date "2022.03.01"]
[WhiteClock "0:01:40"]
[BlackClock "0:02:42"]

1. e4 {[%clk 0:03:00]}  e6 {[%clk 0:03:00]} 2. d4 {[%clk 0:03:00]}  d5 {[%clk 0:03:01]} 3. Nc3 {[%clk 0:03:00]}  Nf6 {[%clk 0:03:01]} 4. e5 {[%clk 0:02:59]}  Nfd7 {[%clk 0:03:01]} 5. Qg4 {[%clk 0:02:59]}  c5 {[%clk 0:03:00]} 6. Nf3 {[%clk 0:02:50]}  Nc6 {[%clk 0:03:00]} 7. Be3 {[%clk 0:02:39]}  cxd4 {[%clk 0:02:57]} 8. Bxd4 {[%clk 0:02:36]}  Nxd4 {[%clk 0:02:55]} 9. Qxd4 {[%clk 0:02:36]}  Bc5 {[%clk 0:02:55]} 10. Qg4 {[%clk 0:02:33]}  Qb6 {[%clk 0:02:54]} 11. Qg3 {[%clk 0:02:25]}  Qxb2 {[%clk 0:02:52]} 12. Nb5 {[%clk 0:01:57]}  Bb4+ {[%clk 0:02:43]} 13. Ke2 {[%clk 0:01:40]}  Qxc2+ {[%clk 0:02:42]} 14. Ke3 {[%clk 0:01:40]}  Qe4# {[%clk 0:02:42]} 0-1


[Site "https://www.chess.com"]

[Event "Titled Tuesday Blitz March 01 Early 2022"]
[White "Krysa, Leandro"]
[Black "Hirneise, Jens"]
[WhiteFideId "116807"]
[BlackFideId "24614734"]
[WhiteElo "2490"]
[BlackElo "2323"]
[Result "1-0"]
[Round "04"]
[TimeControl "180+1"]
[Date "2022.03.01"]
[WhiteClock "0:01:52"]
[BlackClock "0:01:11"]

1. e4 {[%clk 0:03:00]}  e5 {[%clk 0:02:56]} 2. Nf3 {[%clk 0:03:00]}  Nf6 {[%clk 0:02:56]} 3. Nc3 {[%clk 0:03:00]}  Nc6 {[%clk 0:02:55]} 4. a4 {[%clk 0:03:01]}  Bc5 {[%clk 0:02:39]} 5. Nxe5 {[%clk 0:02:59]}  Nxe5 {[%clk 0:02:34]} 6. d4 {[%clk 0:02:58]}  Bd6 {[%clk 0:02:28]} 7. dxe5 {[%clk 0:02:57]}  Bxe5 {[%clk 0:02:28]} 8. Bd3 {[%clk 0:02:57]}  d6 {[%clk 0:02:21]} 9. O-O {[%clk 0:02:54]}  Bxh2+ {[%clk 0:01:57]} 10. Kxh2 {[%clk 0:02:53]}  Ng4+ {[%clk 0:01:57]} 11. Kg1 {[%clk 0:02:53]}  Qh4 {[%clk 0:01:55]} 12. Bf4 {[%clk 0:02:53]}  h5 {[%clk 0:01:46]} 13. Nd5 {[%clk 0:02:49]}  Qd8 {[%clk 0:01:45]} 14. Ne3 {[%clk 0:02:41]}  Qf6 {[%clk 0:01:39]} 15. Nd5 {[%clk 0:02:36]}  Qd8 {[%clk 0:01:38]} 16. f3 {[%clk 0:02:35]}  Ne5 {[%clk 0:01:36]} 17. Bxe5 {[%clk 0:02:33]}  dxe5 {[%clk 0:01:37]} 18. Qe1 {[%clk 0:02:22]}  h4 {[%clk 0:01:35]} 19. Rd1 {[%clk 0:02:14]}  h3 {[%clk 0:01:28]} 20. g3 {[%clk 0:02:12]}  h2+ {[%clk 0:01:28]} 21. Kh1 {[%clk 0:02:13]}  c6 {[%clk 0:01:26]} 22. Ne3 {[%clk 0:02:07]}  Be6 {[%clk 0:01:19]} 23. Bc4 {[%clk 0:02:02]}  Qg5 {[%clk 0:01:16]} 24. Bxe6 {[%clk 0:01:58]}  fxe6 {[%clk 0:01:17]} 25. Ng4 {[%clk 0:01:54]}  O-O {[%clk 0:01:11]} 26. Qd2 {[%clk 0:01:52]} 1-0


[Site "https://www.chess.com"]